Cogmind - Beta 13 @@@ ROGUE MODE // 2024.04.03 @ 18:29:22 Player: b00n1n Result: Destroyed by G-47 Trooper with Particle Gun Performance ------------- Evolutions (0) 0 Regions Visited (1) 200 Robots Destroyed (5) 25 Value Destroyed (151) 151 Prototype IDs (0) 0 Alien Tech Used (0) 0 Bonus (0) 0 TOTAL SCORE: 376 Bonus ------- None Cogmind --------- Core Integrity 0/250 Matter 290/300 Energy 66/100 System Corruption 0% Temperature Hot (273) Movement Core (50) Location -10/Materials Parts ------- > --- POWER (1) -------- (None) > --- PROPULSION (2) --- (None) > --- UTILITY (2) ------ (None) > --- WEAPON (2) ------- Medium Laser > --- INVENTORY (5) ---- Ion Engine Aluminum Leg Aluminum Leg Wheel Peak State ------------ > --- POWER ------------ Light Ion Engine > --- PROPULSION ------- Wheel Wheel > --- UTILITY ---------- (None) > --- WEAPON ----------- Medium Laser Small Laser > --- INVENTORY -------- Aluminum Leg Aluminum Leg EM Pulse Gun [Rating: 5] Favorites ----------- Power Light Ion Engine Engine Light Ion Engine Propulsion Wheel Wheel Wheel Hover Unit Hover Unit Utility None Weapon Medium Laser Energy Gun Medium Laser Build | -11 -10 ------- Run | Yrd Mat Slots Evolved . | . . Power . | . . Propulsion . | . . Utility . | . . Weapon . | . . Parts Attached 11 | 8 3 Power 1 | 1 . Engine 1 | 1 . Core . | . . Reactor . | . . Propulsion 3 | 2 1 Treads . | . . Leg . | . . Wheel 2 | 2 . Hover 1 | . 1 Flight . | . . Utility . | . . Device . | . . Storage . | . . Processor . | . . Hackware . | . . Protection . | . . Artifact . | . . Weapon 7 | 5 2 Energy Gun 7 | 5 2 Energy Cannon . | . . Ballistic Gun . | . . Ballistic Cannon . | . . Launcher . | . . Special Weapon . | . . Impact Weapon . | . . Slashing Weapon . | . . Piercing Weapon . | . . Special Melee Weapon . | . . Unidentified Prototypes . | . . Parts Lost 5 | . 5 Power 1 | . 1 Propulsion 2 | . 2 Utility . | . . Weapon 2 | . 2 Highest Loss Streak 5 | . 5 To Critical Strikes . | . . Average Slot Usage (%) 55 | . 55 Engine 10 | . 10 Wheel 14 | . 14 Hover 6 | . 6 Energy Gun 24 | . 24 Naked Turns 1 | . 1 Heaviest Build 6 | 6 6 Greatest Support 20 | 20 10 Greatest Overweight (x) . | . . Average Overweight (x) . | . . Largest Inventory Capacity 5 | 5 5 Average Capacity 5 | 5 5 Most Carried 5 | 5 5 Average Carried 3 | 2 3 Final Capacity 5 | 5 5 Final Carried 4 | 3 4 Class Distribution -------------------- 100% | Mutant Dominant Class ---------------- Mutant | -10/Materials Resources | -11 -10 ----------- Run | Yrd Mat Matter Collected 280 | 280 . Remotely . | . . Salvage Created 180 | 45 135 Parts 9 | . 9 Haulers Intercepted . | . . Recyclers Shooed . | . . Parts Field Recycled . | . . Retrieved Matter . | . . Parts Self-Destructed . | . . Prevented . | . . Kills | -11 -10 ------- Run | Yrd Mat Combat Hostiles Destroyed 4 | 1 3 Guns 2 | . 2 AOE 1 | . 1 Classes Destroyed 2 | 1 1 Builder 1 | . 1 Grunt 4 | 1 3 Best Kill Streak 4 | 1 4 Combat Bots Only 3 | 1 3 Max Kills in Single Turn 1 | 1 1 Gunslinging . | . . Exploded 1 | . 1 Melee . | . . Uniques/NPCs Destroyed . | . . Combat | -11 -10 -------- Run | Yrd Mat Hostile Shots Fired 56 | 4 52 Missed 16 | 2 14 Damage Taken 522 | 23 499 Core 260 | 11 249 Absorbed by Shields . | . . Core Remaining (%) 95 | 95 . Volleys Fired 22 | 3 19 Largest 2 | 2 2 Hottest 90 | 90 90 Shots Fired 31 | 6 25 Gun 31 | 6 25 Cannon . | . . Launcher . | . . Special . | . . Kinetic . | . . Thermal 27 | 6 21 Explosive . | . . Electromagnetic 4 | . 4 Robot Hit Streak 6 | 6 5 Robot Miss Streak 4 | . 4 Penetration Max . | . . Secondary Targets . | . . Shots Hit Robots 20 | 6 14 Core Hits 8 | 1 7 Critical Kills . | . . Critical Parts Destroyed . | . . Critical Strikes 1 | 1 . Burn 1 | 1 . Melee Attacks . | . . Impact . | . . Slashing . | . . Piercing . | . . Sneak Attacks . | . . Combat Hostiles . | . . Follow-up Attacks . | . . Damage Inflicted 301 | 73 228 Guns 256 | 73 183 Cannons . | . . Explosions 45 | . 45 Melee . | . . Ramming . | . . Kinetic . | . . Thermal 289 | 73 216 Explosive . | . . Electromagnetic 12 | . 12 Impact . | . . Slashing . | . . Piercing . | . . Highest Corruption . | . . Average Corruption . | . . Corruption Purged . | . . Corruption Blocked . | . . Overload Shots . | . . Overflow Damage . | . . Projectiles . | . . Explosions . | . . Melee . | . . Knockbacks . | . . Impact . | . . Kinetic . | . . Secondary . | . . Self-Inflicted Damage . | . . Shots . | . . Rammed . | . . Targets Rammed . | . . Kicked . | . . Crushed . | . . Highest Temperature 272 | 102 272 Average Temperature 162 | 59 184 Received Heat Transfer 291 | 12 279 Effects 2 | . 2 Interference 2 | . 2 Siege Activations . | . . Robots Corrupted . | . . Combat Hostiles . | . . Parts Fried . | . . Impact Corruptions . | . . Robots Melted 1 | 1 . Combat Hostiles 1 | 1 . Parts Melted 1 | 1 . Heat Transferred 742 | 260 482 Parts Sabotaged . | . . Parts Stolen . | . . Parts Stripped . | . . Power Chain Reactions 1 | . 1 Alert | -11 -10 ------- Run | Yrd Mat Peak Influence 93 | 20 93 Initial 13 | . 13 Average 26 | 1 43 Maximum Alert Level . | . . Low Security (%) 100 | 100 100 Level 1 . | . . Level 2 . | . . Level 3 . | . . Level 4 . | . . Level 5 . | . . High Security . | . . Max Security . | . . Squads Dispatched 1 | . 1 Investigation . | . . Extermination . | . . Reinforcement 1 | . 1 Assault . | . . Garrison . | . . Intercept . | . . Searches Triggered . | . . Construction Impeded . | . . Haulers Reinforced . | . . Active Scanning Responses . | . . Cargo Convoy Interrupts . | . . Stealth | -11 -10 --------- Run | Yrd Mat Distress Signals . | . . Communications Jammed . | . . Distress Signals . | . . Times Spotted 7 | 1 6 Peak Tracking Total 5 | 1 5 Tactical Retreats . | . . Traps | -11 -10 ------- Run | Yrd Mat Traps Triggered . | . . Indirectly . | . . Trap Hack Attempts . | . . Triggered . | . . Disarmed . | . . Reprogrammed . | . . Reused . | . . Traps Extracted . | . . Installed . | . . Triggered . | . . Machines | -11 -10 ---------- Run | Yrd Mat Machines Disabled 1 | . 1 Max in Single Turn 1 | . 1 Machines Repaired . | . . Machines Dismantled . | . . Machines Sabotaged . | . . Overloaded Fab Kills . | . . Hacking | -11 -10 --------- Run | Yrd Mat Machines Accessed 1 | . 1 Terminals 1 | . 1 Fabricators . | . . Repair Stations . | . . Recycling Units . | . . Scanalyzers . | . . Garrison Access . | . . Total Hacks 4 | . 4 Successful 3 | . 3 Failed 1 | . 1 Catastrophic . | . . Database Lockouts . | . . Manual . | . . Terminals 4 | . 4 Fabricators . | . . Repair Stations . | . . Recycling Units . | . . Scanalyzers . | . . Garrison Access . | . . Terminal Hacks 3 | . 3 Locate Traps 1 | . 1 Dispatch Records 1 | . 1 Hauler Manifests 1 | . 1 Fabricator Hacks . | . . Repair Station Hacks . | . . Recycling Unit Hacks . | . . Scanalyzer . | . . Garrison Access Hacks . | . . Unauthorized Hacks . | . . Terminals . | . . Fabricators . | . . Repair Stations . | . . Recycling Units . | . . Scanalyzers . | . . Garrison Access . | . . Data Cores Recovered . | . . Used . | . . Hacking Detections 1 | . 1 Full Trace Events . | . . Feedback Events . | . . Feedback Blocked . | . . Robot Schematics Acquired . | . . Robots Built . | . . Authchips . | . . Time . | . . Total Robot Build Rating . | . . Part Schematics Acquired . | . . Parts Built . | . . Authchips . | . . Time . | . . Total Part Build Rating . | . . Parts Repaired . | . . Time . | . . Parts Recycled . | . . Recycled Matter . | . . Retrieved Matter . | . . Retrieved Components . | . . Parts Scanalyzed . | . . Part Schematics Acquired . | . . Parts Damaged . | . . Bothacking | -11 -10 ------------ Run | Yrd Mat Used RIF Installer . | . . Robots Hacked . | . . Non-combat . | . . Combat . | . . Robot Hacks Applied . | . . Relay Couplers Released . | . . Fabnet Peak Effective % . | . . Robots Rewired . | . . Allies Hacked . | . . Hacks Repelled . | . . Allies | -11 -10 -------- Run | Yrd Mat Total Allies . | . . Largest Group . | . . Highest-Rated Group . | . . Highest-Rated Ally . | . . Total Orders . | . . Ally Attacks . | . . Total Damage . | . . Kills . | . . Allies Corrupted . | . . Allies Melted . | . . Intel | -11 -10 ------- Run | Yrd Mat Robot Analysis Total . | . . Derelict Logs Recovered . | . . Drone Launches . | . . Drone Recoveries . | . . Exploration | -11 -10 ------------- Run | Yrd Mat Turns Passed 181 | 73 108 Spaces Moved 156 | 88 68 Core 80 | 76 4 Treads . | . . Legs . | . . Wheels 43 | 12 31 Hover 33 | . 33 Flight . | . . Fastest Speed 50 | 50 50 Average Speed 61 | 54 70 Slowest Speed 80 | 80 80 Overloaded Moves . | . . Propulsion Burnouts . | . . Robots Hopped . | . . Cave-ins Triggered . | . . Exploration Rate (%) 13 | 5 21 Regions Visited 1 Branch Regions . Pre-discovered Areas . | . . Known Exits Taken . | . . Unknown Exits Taken 1 | 1 . Scrap Searched . | . . Spaces Dug . | . . Terrain Destroyed 6 | . 6 Melee . | . . Projectile . | . . AOE 6 | . 6 Terrain Rammed . | . . Walls Destroyed . | . . Machines Disabled . | . . Actions | -11 -10 --------- Run | Yrd Mat Total 209 | 107 102 Wait 10 | . 10 Move 155 | 87 68 Hop . | . . Pick Up 8 | 6 2 Fast Attach 2 | 2 . Attach 7 | 6 1 Detach 3 | 3 . Swap 2 | . 2 Drop . | . . Fire 22 | 3 19 Melee . | . . Ram . | . . Kick . | . . Crush . | . . Escape Stasis . | . . Rewire . | . . Trap . | . . Miscellaneous . | . . Route ------- -11/Scrapyard -10/Materials (discovered 1 exit: [*Mat]) History --------- Turn | Location | Event 2 | -11/Scrapyard | Met Revision 17 55 | -11/Scrapyard | Discovered new exit (range 8) 74 | -11/Scrapyard | Entered Materials 131 | -10/Materials | Discovered new exit (range 16) 169 | -10/Materials | Core integrity fell below 50% 177 | -10/Materials | Core integrity fell below 20% 182 | -10/Materials | Destroyed by G-47 Trooper with Particle Gun Last Messages --------------- Overheating: System interference. Sml. Laser temporarily disabled. Med. Laser temporarily disabled. Lgt. Ion Engine destroyed. K-01 Serf collects debris. Sml. Laser destroyed. Hover Unit destroyed. Wheel destroyed. Chain reaction triggered in Ion Engine. G-34 Mercenary destroyed. Terminal disabled. K-01 Serf collects debris. Acquired Ion Engine. EM Pulse Gun destroyed. K-01 Serf collects debris. G-34 Mercenary destroyed. K-01 Serf collects debris. U-05 Engineer lays Concrete. U-05 Engineer builds a Wall. K-01 Serf collects debris. Map ----- +----------------------------------------------------+ | ?????????????????????????????# #?????????? | | ?????????????????????????????# #?????????? | | ?????????????????????????????# #?????????? | | ?????????????????????????????# #?????????? | | ?????????????????????????????# ########### | | ?????????????????????????????# # | | ?????????????????????????????# # "" | | ?????????????????????????????# # "" | | ?????????????????????????????+ + "T" "" | | ?????????????????????????????# # """ | | ?????????????????????????????# ########### | | ?????????????????????????????# ^ | | ?????????????????????????????#^ | | ??????????????????????########^^ ########### | | ??????????#???????????# # #?????????? | | ??????????# ??????????# + ^^##########? | | ??????????+ ??????????# """" # | | ??????????# ?????????# """" # | | ???????????# ????????# """" # """ | | ???????????# ???????# # """ ###### | | ???????????# ??????######## """ #????? | | ???????????# ????????????# #????? | | ???????????# ####????????# #????? | | ?????????### ;;;########## #????? | | ?????????# [a! =g !!#? | | ?????????# < =%@| = !% !!#? | | ?????????# !%! ==#? | | ?????????###### ;# ;#u ==#? | | ??????????????#+?#### r [[#? | | ????????????? ?????# !== k [[#? | | ???????????? ???????# !== #####? | | ??????????# ????????# == #????? | | ??????????#?????????# ???? | | ????????????????????# ??? | | ????????????????????# ########### """ ??? | | ????????????????????# #?????????? "Y????? | | ????????????????????# #??????????? ?????? | | ????????????????????# #??????????????????? | | ????????????????????# ??????????????????? | | ????????????????????# #??????????????????? | | ????????????????????# ???????????????????? | | ????????????????????? ???????????????????? | | ???????????????????????????????????????????? | | ???????????????????????????????????????????? | | ???????????????????????????????????????????? | | ???????????????????????????????????????????? | | ???????????????????????????????????????????? | | ???????????????????????????????????????????? | | ???????????????????????????????????????????? | | ???????????????????????????????????????????? | +----------------------------------------------------+ Best States ------------- Heat Dissipation 25 Energy Generation 10 Energy Capacity 125 Matter Stores 300 Matter Capacity 300 Sight Range 16 Terrain Scan Density 10 Evasion (%) 52 Item Schematics ----------------- None Robot Schematics ------------------ None Fabricated ------------ Nothing Alien Tech Used ----------------- None Achievements -------------- Shopping List Challenges ------------ None Game ------ Seed EnergyExoskeletonAirjet Manual? 0 Play Time 00:10:31 Cumulative 3.0 hours Start 2024.04.03 @ 18:19:20 End 2024.04.03 @ 18:29:22 Sessions 1 Manual Loads 0 Difficulty Rogue Special Mode None Game No. 2 Rogue 2 Adventurer 0 Explorer 0 Win Type - Total 0 Types 0/0/0/0/0/0/0/0/0 Lore% 9 Gallery% 3 Achievement% 3 Wizard Run 0 Options --------- Layout 1 ASCII 0 Keyboard 0 Movement Vi Keybinds 0 Fullscreen 1 Font 24/Terminus Map View 50x35 Zoom Use 0% Tactical HUD 0 Map Filters NONE Filters NONE Steam 1 RUN: 34016cb6-b9c4-4eda-9c75-7af51ab1cb11